Workbook

Sheet CONTABILIDAD Libro Diario
D1: Nit. 900.XXX,XX9-9 | H1: DIFERENCIA | I1: =SUM(K:K)-SUM(L:L) -> 0
D2: Resolucion DIAN 90000000-222222 de 01 de enero de 2013 numeracion facturacion 01-9999 | I2: INVENTARIO PERMANENTE - PEPS
D3: IVA - REGIMEN COMÚN
A5: TIPO COMP | B5: # | C5: FECHA COMP | D5: NO SOPORTE | E5: FECHA SOPORTE | F5: NIT | G5: TERCERO | H5: CONCEPTO | I5: CUENTA NO | J5: NOMBRE CTA | K5: DEBITOS | L5: CREDITOS | M5: CHEQUE
A6: CD-Comprobante Diario | B6: 0001 | C6: 2013-01-02 | F6: 900XXXXX9 | G6: =IFERROR(VLOOKUP(F6,TERCEROS[],3,FALSE),"") -> ZAPATOCA S.A.S | H6: Aportes Creacion de Empresa | I6: 310505 | J6: =IFERROR(VLOOKUP(I6,PUC,2,FALSE),"") -> CAPITAL AUTORIZADO
A7: CD-Comprobante Diario | B7: 0001 | C7: 2013-01-02 | F7: 900XXXXX9 | G7: =IFERROR(VLOOKUP(F7,TERCEROS[],3,FALSE),"") -> ZAPATOCA S.A.S | H7: Aportes Creacion de Empresa | I7: 310510 | J7: CAPITAL POR SUSCRIBIR (DB)
A8: CD-Comprobante Diario | B8: 0001 | C8: 2013-01-02 | F8: 900XXXXX9 | G8: =IFERROR(VLOOKUP(F8,TERCEROS[],3,FALSE),"") -> ZAPATOCA S.A.S | H8: Aportes Creacion de Empresa | I8: 310510 | J8: CAPITAL POR SUSCRIBIR (DB)
A9: CD-Comprobante Diario | B9: 0001 | C9: 2013-01-02 | F9: 900XXXXX9 | G9: =IFERROR(VLOOKUP(F9,TERCEROS[],3,FALSE),"") -> ZAPATOCA S.A.S | H9: Aportes Creacion de Empresa | I9: 310515 | J9: CAPITAL SUSCRITO POR COBRAR (DB)
A10: CD-Comprobante Diario | B10: 0001 | C10: 2013-01-02 | F10: 83215563 | G10: =IFERROR(VLOOKUP(F10,TERCEROS[],3,FALSE),"") -> PEPITO PEREZ | H10: Apte Vehiculo para la empresa | I10: 154005 | J10: AUTOS, CAMIONETAS Y CAMPEROS
A11: CD-Comprobante Diario | B11: 0001 | C11: 2013-01-02 | F11: 83215563 | G11: =IFERROR(VLOOKUP(F11,TERCEROS[],3,FALSE),"") -> PEPITO PEREZ | H11: Apte Vehiculo para la empresa | I11: 31051501 | J11: PEPITO PEREZ
A12: CD-Comprobante Diario | B12: 0001 | C12: 2013-01-02 | F12: 83215563 | G12: =IFERROR(VLOOKUP(F12,TERCEROS[],3,FALSE),"") -> PEPITO PEREZ | H12: Apte Terreno para la empresaq | I12: 150405 | J12: URBANOS
A13: CD-Comprobante Diario | B13: 0001 | C13: 2013-01-02 | F13: 83215563 | G13: =IFERROR(VLOOKUP(F13,TERCEROS[],3,FALSE),"") -> PEPITO PEREZ | H13: Apte Terreno para la empresaq | I13: 31051501 | J13: PEPITO PEREZ
A14: CD-Comprobante Diario | B14: 0001 | C14: 2013-01-02 | F14: 1204001553 | G14: =IFERROR(VLOOKUP(F14,TERCEROS[],3,FALSE),"") -> WILMER CORDOBA | H14: Apte en efectivo | I14: 31051502 | J14: WILMER CORDOBA
A15: CD-Comprobante Diario | B15: 0001 | C15: 2013-01-02 | F15: 1204001553 | G15: =IFERROR(VLOOKUP(F15,TERCEROS[],3,FALSE),"") -> WILMER CORDOBA | H15: Apte en efectivo | I15: 110505 | J15: CAJA GENERAL
A16: CD-Comprobante Diario | B16: 0001 | C16: 2013-01-02 | F16: 1204001553 | G16: =IFERROR(VLOOKUP(F16,TERCEROS[],3,FALSE),"") -> WILMER CORDOBA | H16: Aporte de Edificio | I16: 31051502 | J16: WILMER CORDOBA
A17: CD-Comprobante Diario | B17: 0001 | C17: 2013-01-02 | F17: 1204001553 | G17: =IFERROR(VLOOKUP(F17,TERCEROS[],3,FALSE),"") -> WILMER CORDOBA | H17: Aporte de Edificio | I17: 150405 | J17: URBANOS
A18: CD-Comprobante Diario | B18: 0001 | C18: 2013-01-02 | F18: 1204001553 | G18: =IFERROR(VLOOKUP(F18,TERCEROS[],3,FALSE),"") -> WILMER CORDOBA | H18: Apta Construccion para oficina cll 94 con 5 | I18: 31051502 | J18: WILMER CORDOBA
A19: CD-Comprobante Diario | B19: 0001 | C19: 2013-01-02 | F19: 1204001553 | G19: =IFERROR(VLOOKUP(F19,TERCEROS[],3,FALSE),"") -> WILMER CORDOBA | H19: Apta Construccion para oficina cll 94 con 5 | I19: 151610 | J19: OFICINAS
A20: CD-Comprobante Diario | B20: 0001 | C20: 2013-01-02 | F20: 101901555 | G20: =IFERROR(VLOOKUP(F20,TERCEROS[],3,FALSE),"") -> LUZ MOLINA | H20: Apta casa en la calle 100 | I20: 31051503 | J20: LUZ MOLINA
A21: CD-Comprobante Diario | B21: 0001 | C21: 2013-01-02 | F21: 101901555 | G21: =IFERROR(VLOOKUP(F21,TERCEROS[],3,FALSE),"") -> LUZ MOLINA | H21: Apta casa en la calle 100 | I21: 151610 | J21: OFICINAS
A22: CD-Comprobante Diario | B22: 0001 | C22: 2013-01-02 | F22: 101901555 | G22: =IFERROR(VLOOKUP(F22,TERCEROS[],3,FALSE),"") -> LUZ MOLINA | H22: Apte Computador Dell SN 300sn25 | I22: 31051503 | J22: LUZ MOLINA
A23: CD-Comprobante Diario | B23: 0001 | C23: 2013-01-02 | F23: 101901555 | G23: =IFERROR(VLOOKUP(F23,TERCEROS[],3,FALSE),"") -> LUZ MOLINA | H23: Apte Computador Dell SN 300sn25 | I23: 15280501 | J23: COMPUTADOR MARCA DELL
A24: CD-Comprobante Diario | B24: 0002 | C24: 2013-01-02 | F24: 900000030 | G24: =IFERROR(VLOOKUP(F24,TERCEROS[],3,FALSE),"") -> BANCONTABLE | H24: Consignación de aportes | I24: 111005 | J24: MONEDA NACIONAL
A25: CD-Comprobante Diario | B25: 0002 | C25: 2013-01-02 | F25: 900000030 | G25: =IFERROR(VLOOKUP(F25,TERCEROS[],3,FALSE),"") -> BANCONTABLE | H25: Consignación de aportes | I25: 110505 | J25: CAJA GENERAL
A26: FC-Factura Compra | B26: 0001 | C26: 2013-01-02 | D26: IMB2563 | E26: 2013-01-02 | F26: 900.355.XXX | G26: =IFERROR(VLOOKUP(F26,TERCEROS[],3,FALSE),"") -> INMOBILIARIA SERVICES S.A | H26: Pago Tres meses de arriendo de bodega | I26: 170525 | J26: ARRENDAMIENTOS
A27: FC-Factura Compra | B27: 0001 | C27: 2013-01-02 | D27: IMB2563 | E27: 2013-01-02 | F27: 900.355.XXX | G27: =IFERROR(VLOOKUP(F27,TERCEROS[],3,FALSE),"") -> INMOBILIARIA SERVICES S.A | H27: Pago Tres meses de arriendo de bodega | I27: 240802 | J27: IVA DESCONTABLE
A28: FC-Factura Compra | B28: 0001 | C28: 2013-01-02 | D28: IMB2563 | E28: 2013-01-02 | F28: 900.355.XXX | G28: =IFERROR(VLOOKUP(F28,TERCEROS[],3,FALSE),"") -> INMOBILIARIA SERVICES S.A | H28: Pago Tres meses de arriendo de bodega | I28: 236530 | J28: ARRENDAMIENTOS
A29: FC-Factura Compra | B29: 0001 | C29: 2013-01-02 | D29: IMB2563 | E29: 2013-01-02 | F29: 900.355.XXX | G29: =IFERROR(VLOOKUP(F29,TERCEROS[],3,FALSE),"") -> INMOBILIARIA SERVICES S.A | H29: Pago Tres meses de arriendo de bodega | I29: 233540 | J29: ARRENDAMIENTOS
A30: CE-Comprobante de Egreso | B30: 0001 | C30: 2013-01-02 | D30: IMB2563 | E30: 2013-01-02 | F30: 900.355.XXX | G30: =IFERROR(VLOOKUP(F30,TERCEROS[],3,FALSE),"") -> INMOBILIARIA SERVICES S.A | H30: Pago Fra NO IMB2563 | I30: 233540 | J30: ARRENDAMIENTOS
A31: CE-Comprobante de Egreso | B31: 0001 | C31: 2013-01-02 | D31: IMB2563 | E31: 2013-01-02 | F31: 900.355.XXX | G31: =IFERROR(VLOOKUP(F31,TERCEROS[],3,FALSE),"") -> INMOBILIARIA SERVICES S.A | H31: Pago Fra NO IMB2563 | I31: 1110050501 | J31: CUENTA CORRIENTE NO. 008000356956
A32: FC-Factura Compra | B32: 0002 | C32: 2013-01-10 | D32: ZAP002540 | E32: 2013-01-08 | F32: 900555235 | G32: =IFERROR(VLOOKUP(F32,TERCEROS[],3,FALSE),"") -> ZAPATEROS BIG LTDA | H32: Compra de Mercancias | I32: 14350101 | J32: ZAPATO REFERENCIA 002zp
A33: FC-Factura Compra | B33: 0002 | C33: 2013-01-10 | D33: ZAP002540 | E33: 2013-01-08 | F33: 900555235 | G33: =IFERROR(VLOOKUP(F33,TERCEROS[],3,FALSE),"") -> ZAPATEROS BIG LTDA | H33: Compra de Mercancias | I33: 14350102 | J33: ZAPATO REFERENCIA 003zp
A34: FC-Factura Compra | B34: 0002 | C34: 2013-01-10 | D34: ZAP002540 | E34: 2013-01-08 | F34: 900555235 | G34: =IFERROR(VLOOKUP(F34,TERCEROS[],3,FALSE),"") -> ZAPATEROS BIG LTDA | H34: Compra de Mercancias | I34: 14350103 | J34: ZAPATO REFERENCIA 004zp
A35: FC-Factura Compra | B35: 0002 | C35: 2013-01-10 | D35: ZAP002540 | E35: 2013-01-08 | F35: 900555235 | G35: =IFERROR(VLOOKUP(F35,TERCEROS[],3,FALSE),"") -> ZAPATEROS BIG LTDA | H35: Compra de Mercancias | I35: 240802 | J35: IVA DESCONTABLE
A36: FC-Factura Compra | B36: 0002 | C36: 2013-01-10 | D36: ZAP002540 | E36: 2013-01-08 | F36: 900555235 | G36: =IFERROR(VLOOKUP(F36,TERCEROS[],3,FALSE),"") -> ZAPATEROS BIG LTDA | H36: Compra de Mercancias | I36: 236540 | J36: COMPRAS
A37: FC-Factura Compra | B37: 0002 | C37: 2013-01-10 | D37: ZAP002540 | E37: 2013-01-08 | F37: 900555235 | G37: =IFERROR(VLOOKUP(F37,TERCEROS[],3,FALSE),"") -> ZAPATEROS BIG LTDA | H37: Compra de Mercancias | I37: 220501 | J37: PROVEEDORES NACIONALES
A38: CE-Comprobante de Egreso | B38: 0002 | C38: 2013-01-10 | D38: ZAP002540 | E38: 2013-01-08 | F38: 900555235 | G38: =IFERROR(VLOOKUP(F38,TERCEROS[],3,FALSE),"") -> ZAPATEROS BIG LTDA | H38: Pago de Fra NO. ZAP0002540 | I38: 220501 | J38: PROVEEDORES NACIONALES
A39: CE-Comprobante de Egreso | B39: 0002 | C39: 2013-01-10 | D39: ZAP002540 | E39: 2013-01-08 | F39: 900555235 | G39: =IFERROR(VLOOKUP(F39,TERCEROS[],3,FALSE),"") -> ZAPATEROS BIG LTDA | H39: Pago de Fra NO. ZAP0002540 | I39: 1110050501 | J39: =IFERROR(VLOOKUP(I39,PUC,2,FALSE),"") -> CUENTA CORRIENTE NO. 008000356956
A40: FV-Factura de Venta | B40: ZP0001 | C40: 2013-01-15 | F40: 800211212 | G40: =IFERROR(VLOOKUP(F40,TERCEROS[],3,FALSE),"") -> LOS CAIMOS ZAPATOS S.A.S. | H40: venta de mercancia a credito | I40: 41352401 | J40: ZAPATOS REF 002ZP | L40: 1116379
A41: FV-Factura de Venta | B41: ZP0001 | C41: 2013-01-15 | F41: 800211212 | G41: =IFERROR(VLOOKUP(F41,TERCEROS[],3,FALSE),"") -> LOS CAIMOS ZAPATOS S.A.S. | H41: venta de mercancia a credito | I41: 41352403 | J41: ZAPATOS REF 004ZP | L41: 1876000
A42: FV-Factura de Venta | B42: ZP0001 | C42: 2013-01-15 | F42: 800211212 | G42: =IFERROR(VLOOKUP(F42,TERCEROS[],3,FALSE),"") -> LOS CAIMOS ZAPATOS S.A.S. | H42: venta de mercancia a credito | I42: 240801 | J42: IVA GENERADO | L42: 478781
A43: FV-Factura de Venta | B43: ZP0001 | C43: 2013-01-15 | F43: 800211212 | G43: =IFERROR(VLOOKUP(F43,TERCEROS[],3,FALSE),"") -> LOS CAIMOS ZAPATOS S.A.S. | H43: venta de mercancia a credito | I43: 135515 | J43: RETENCION EN LA FUENTE | K43: =+N43*3.5/100 -> 104733.265 | N43: =+L40+L41 -> 2992379
A44: FV-Factura de Venta | B44: ZP0001 | C44: 2013-01-15 | F44: 800211212 | G44: =IFERROR(VLOOKUP(F44,TERCEROS[],3,FALSE),"") -> LOS CAIMOS ZAPATOS S.A.S. | H44: venta de mercancia a credito | I44: 135517 | J44: IMPUESTO A LAS VENTAS RETENIDO | K44: =+L42*0.15 -> 71817.15
A45: FV-Factura de Venta | B45: ZP0001 | C45: 2013-01-15 | F45: 800211212 | G45: =IFERROR(VLOOKUP(F45,TERCEROS[],3,FALSE),"") -> LOS CAIMOS ZAPATOS S.A.S. | H45: venta de mercancia a credito | I45: 135518 | J45: IMPUESTO DE INDUSTRIA Y COMERCIO RETENIDO | K45: =+N43*11.04/1000 -> 33035.86416
A46: FV-Factura de Venta | B46: ZP0001 | C46: 2013-01-15 | F46: 800211212 | G46: =IFERROR(VLOOKUP(F46,TERCEROS[],3,FALSE),"") -> LOS CAIMOS ZAPATOS S.A.S. | H46: venta de mercancia a credito | I46: 135595 | J46: (otros) Anticipo impuesto retenido a titulo de CREE | K46: =+N43*0.3/100 -> 8977.137
A47: FV-Factura de Venta | B47: ZP0001 | C47: 2013-01-15 | F47: 800211212 | G47: =IFERROR(VLOOKUP(F47,TERCEROS[],3,FALSE),"") -> LOS CAIMOS ZAPATOS S.A.S. | H47: venta de mercancia a credito | I47: 130505 | J47: NACIONALES | K47: =+L40+L41+L42-K43-K44-K45-K46 -> 3252596.584
A48: CD-Comprobante Diario | B48: ZP0001 | C48: 2013-01-15 | F48: 800211212 | G48: =IFERROR(VLOOKUP(F48,TERCEROS[],3,FALSE),"") -> LOS CAIMOS ZAPATOS S.A.S. | H48: venta de mercancia a credito | I48: 61352401 | J48: ZAPATOS REF 002ZP | K48: 600000
A49: CD-Comprobante Diario | B49: ZP0001 | C49: 2013-01-15 | F49: 800211212 | G49: =IFERROR(VLOOKUP(F49,TERCEROS[],3,FALSE),"") -> LOS CAIMOS ZAPATOS S.A.S. | H49: venta de mercancia a credito | I49: 14350101 | J49: ZAPATO REFERENCIA 002zp | L49: 600000
A50: CD-Comprobante Diario | B50: ZP0001 | C50: 2013-01-15 | F50: 800211212 | G50: =IFERROR(VLOOKUP(F50,TERCEROS[],3,FALSE),"") -> LOS CAIMOS ZAPATOS S.A.S. | H50: venta de mercancia a credito | I50: 61352403 | J50: ZAPATOS REF 004ZP | K50: 1179500
A51: CD-Comprobante Diario | B51: ZP0001 | C51: 2013-01-15 | F51: 800211212 | G51: =IFERROR(VLOOKUP(F51,TERCEROS[],3,FALSE),"") -> LOS CAIMOS ZAPATOS S.A.S. | H51: venta de mercancia a credito | I51: 14350103 | J51: ZAPATO REFERENCIA 004zp | L51: =+K50 -> 1179500
G58: =IFERROR(VLOOKUP(F58,TERCEROS[],3,FALSE),"") -> 
G59: =IFERROR(VLOOKUP(F59,TERCEROS[],3,FALSE),"") -> 
G60: =IFERROR(VLOOKUP(F60,TERCEROS[],3,FALSE),"") -> 
G61: =IFERROR(VLOOKUP(F61,TERCEROS[],3,FALSE),"") -> 
G62: =IFERROR(VLOOKUP(F62,TERCEROS[],3,FALSE),"") -> 
G63: =IFERROR(VLOOKUP(F63,TERCEROS[],3,FALSE),"") ->  | J63: =IFERROR(VLOOKUP(I63,PUC,2,FALSE),"") -> 
G64: =IFERROR(VLOOKUP(F64,TERCEROS[],3,FALSE),"") -> 
G65: =IFERROR(VLOOKUP(F65,TERCEROS[],3,FALSE),"") -> 
G66: =IFERROR(VLOOKUP(F66,TERCEROS[],3,FALSE),"") -> 
G67: =IFERROR(VLOOKUP(F67,TERCEROS[],3,FALSE),"") -> 
G68: =IFERROR(VLOOKUP(F68,TERCEROS[],3,FALSE),"") -> 
G69: =IFERROR(VLOOKUP(F69,TERCEROS[],3,FALSE),"") -> 
G70: =IFERROR(VLOOKUP(F70,TERCEROS[],3,FALSE),"") -> 
G71: =IFERROR(VLOOKUP(F71,TERCEROS[],3,FALSE),"") -> 
G72: =IFERROR(VLOOKUP(F72,TERCEROS[],3,FALSE),"") -> 
G73: =IFERROR(VLOOKUP(F73,TERCEROS[],3,FALSE),"") -> 
G74: =IFERROR(VLOOKUP(F74,TERCEROS[],3,FALSE),"") -> 
G75: =IFERROR(VLOOKUP(F75,TERCEROS[],3,FALSE),"") -> 
G76: =IFERROR(VLOOKUP(F76,TERCEROS[],3,FALSE),"") -> 
G77: =IFERROR(VLOOKUP(F77,TERCEROS[],3,FALSE),"") -> 
G78: =IFERROR(VLOOKUP(F78,TERCEROS[],3,FALSE),"") -> 
G79: =IFERROR(VLOOKUP(F79,TERCEROS[],3,FALSE),"") -> 
G80: =IFERROR(VLOOKUP(F80,TERCEROS[],3,FALSE),"") -> 
G81: =IFERROR(VLOOKUP(F81,TERCEROS[],3,FALSE),"") -> 
G82: =IFERROR(VLOOKUP(F82,TERCEROS[],3,FALSE),"") -> 
G83: =IFERROR(VLOOKUP(F83,TERCEROS[],3,FALSE),"") -> 
G84: =IFERROR(VLOOKUP(F84,TERCEROS[],3,FALSE),"") -> 
G85: =IFERROR(VLOOKUP(F85,TERCEROS[],3,FALSE),"") -> 
G86: =IFERROR(VLOOKUP(F86,TERCEROS[],3,FALSE),"") -> 
G87: =IFERROR(VLOOKUP(F87,TERCEROS[],3,FALSE),"") -> 
G88: =IFERROR(VLOOKUP(F88,TERCEROS[],3,FALSE),"") -> 
G89: =IFERROR(VLOOKUP(F89,TERCEROS[],3,FALSE),"") -> 
G90: =IFERROR(VLOOKUP(F90,TERCEROS[],3,FALSE),"") -> 
G91: =IFERROR(VLOOKUP(F91,TERCEROS[],3,FALSE),"") -> 
G92: =IFERROR(VLOOKUP(F92,TERCEROS[],3,FALSE),"") -> 
G93: =IFERROR(VLOOKUP(F93,TERCEROS[],3,FALSE),"") -> 
G94: =IFERROR(VLOOKUP(F94,TERCEROS[],3,FALSE),"") -> 
G95: =IFERROR(VLOOKUP(F95,TERCEROS[],3,FALSE),"") -> 
G96: =IFERROR(VLOOKUP(F96,TERCEROS[],3,FALSE),"") -> 
G97: =IFERROR(VLOOKUP(F97,TERCEROS[],3,FALSE),"") -> 
G98: =IFERROR(VLOOKUP(F98,TERCEROS[],3,FALSE),"") -> 
G99: =IFERROR(VLOOKUP(F99,TERCEROS[],3,FALSE),"") -> 
G100: =IFERROR(VLOOKUP(F100,TERCEROS[],3,FALSE),"") -> 
G101: =IFERROR(VLOOKUP(F101,TERCEROS[],3,FALSE),"") -> 
G102: =IFERROR(VLOOKUP(F102,TERCEROS[],3,FALSE),"") -> 
G103: =IFERROR(VLOOKUP(F103,TERCEROS[],3,FALSE),"") -> 
G104: =IFERROR(VLOOKUP(F104,TERCEROS[],3,FALSE),"") -> 
G105: =IFERROR(VLOOKUP(F105,TERCEROS[],3,FALSE),"") -> 
G106: =IFERROR(VLOOKUP(F106,TERCEROS[],3,FALSE),"") -> 
G107: =IFERROR(VLOOKUP(F107,TERCEROS[],3,FALSE),"") -> 
G108: =IFERROR(VLOOKUP(F108,TERCEROS[],3,FALSE),"") -> 
G109: =IFERROR(VLOOKUP(F109,TERCEROS[],3,FALSE),"") -> 
G110: =IFERROR(VLOOKUP(F110,TERCEROS[],3,FALSE),"") -> 
G111: =IFERROR(VLOOKUP(F111,TERCEROS[],3,FALSE),"") -> 
G112: =IFERROR(VLOOKUP(F112,TERCEROS[],3,FALSE),"") -> 
G113: =IFERROR(VLOOKUP(F113,TERCEROS[],3,FALSE),"") -> 
G114: =IFERROR(VLOOKUP(F114,TERCEROS[],3,FALSE),"") -> 
G115: =IFERROR(VLOOKUP(F115,TERCEROS[],3,FALSE),"") -> 
G116: =IFERROR(VLOOKUP(F116,TERCEROS[],3,FALSE),"") -> 
G117: =IFERROR(VLOOKUP(F117,TERCEROS[],3,FALSE),"") -> 
G118: =IFERROR(VLOOKUP(F118,TERCEROS[],3,FALSE),"") -> 
G119: =IFERROR(VLOOKUP(F119,TERCEROS[],3,FALSE),"") -> 
G120: =IFERROR(VLOOKUP(F120,TERCEROS[],3,FALSE),"") -> 
G121: =IFERROR(VLOOKUP(F121,TERCEROS[],3,FALSE),"") -> 
G122: =IFERROR(VLOOKUP(F122,TERCEROS[],3,FALSE),"") -> 
G123: =IFERROR(VLOOKUP(F123,TERCEROS[],3,FALSE),"") -> 
G124: =IFERROR(VLOOKUP(F124,TERCEROS[],3,FALSE),"") -> 
G125: =IFERROR(VLOOKUP(F125,TERCEROS[],3,FALSE),"") -> 
G126: =IFERROR(VLOOKUP(F126,TERCEROS[],3,FALSE),"") -> 
G127: =IFERROR(VLOOKUP(F127,TERCEROS[],3,FALSE),"") ->  | J127: =IFERROR(VLOOKUP(I127,PUC,2,FALSE),"") -> 
G128: =IFERROR(VLOOKUP(F128,TERCEROS[],3,FALSE),"") -> 
G129: =IFERROR(VLOOKUP(F129,TERCEROS[],3,FALSE),"") -> 
G130: =IFERROR(VLOOKUP(F130,TERCEROS[],3,FALSE),"") -> 
G131: =IFERROR(VLOOKUP(F131,TERCEROS[],3,FALSE),"") -> 
G132: =IFERROR(VLOOKUP(F132,TERCEROS[],3,FALSE),"") -> 
G133: =IFERROR(VLOOKUP(F133,TERCEROS[],3,FALSE),"") -> 
G134: =IFERROR(VLOOKUP(F134,TERCEROS[],3,FALSE),"") -> 
G135: =IFERROR(VLOOKUP(F135,TERCEROS[],3,FALSE),"") -> 
G136: =IFERROR(VLOOKUP(F136,TERCEROS[],3,FALSE),"") -> 
G137: =IFERROR(VLOOKUP(F137,TERCEROS[],3,FALSE),"") -> 
G138: =IFERROR(VLOOKUP(F138,TERCEROS[],3,FALSE),"") -> 
G139: =IFERROR(VLOOKUP(F139,TERCEROS[],3,FALSE),"") -> 
G140: =IFERROR(VLOOKUP(F140,TERCEROS[],3,FALSE),"") -> 
G141: =IFERROR(VLOOKUP(F141,TERCEROS[],3,FALSE),"") -> 
G142: =IFERROR(VLOOKUP(F142,TERCEROS[],3,FALSE),"") -> 
G143: =IFERROR(VLOOKUP(F143,TERCEROS[],3,FALSE),"") -> 
G144: =IFERROR(VLOOKUP(F144,TERCEROS[],3,FALSE),"") -> 
G145: =IFERROR(VLOOKUP(F145,TERCEROS[],3,FALSE),"") -> 
G146: =IFERROR(VLOOKUP(F146,TERCEROS[],3,FALSE),"") -> 
G147: =IFERROR(VLOOKUP(F147,TERCEROS[],3,FALSE),"") -> 
G148: =IFERROR(VLOOKUP(F148,TERCEROS[],3,FALSE),"") -> 
G149: =IFERROR(VLOOKUP(F149,TERCEROS[],3,FALSE),"") -> 
G150: =IFERROR(VLOOKUP(F150,TERCEROS[],3,FALSE),"") -> 
G151: =IFERROR(VLOOKUP(F151,TERCEROS[],3,FALSE),"") -> 
G152: =IFERROR(VLOOKUP(F152,TERCEROS[],3,FALSE),"") -> 
G153: =IFERROR(VLOOKUP(F153,TERCEROS[],3,FALSE),"") -> 
G154: =IFERROR(VLOOKUP(F154,TERCEROS[],3,FALSE),"") -> 
G155: =IFERROR(VLOOKUP(F155,TERCEROS[],3,FALSE),"") -> 
G156: =IFERROR(VLOOKUP(F156,TERCEROS[],3,FALSE),"") -> 
G157: =IFERROR(VLOOKUP(F157,TERCEROS[],3,FALSE),"") -> 
G158: =IFERROR(VLOOKUP(F158,TERCEROS[],3,FALSE),"") -> 
G159: =IFERROR(VLOOKUP(F159,TERCEROS[],3,FALSE),"") -> 
G160: =IFERROR(VLOOKUP(F160,TERCEROS[],3,FALSE),"") -> 
G161: =IFERROR(VLOOKUP(F161,TERCEROS[],3,FALSE),"") -> 
G162: =IFERROR(VLOOKUP(F162,TERCEROS[],3,FALSE),"") -> 
G163: =IFERROR(VLOOKUP(F163,TERCEROS[],3,FALSE),"") -> 
G164: =IFERROR(VLOOKUP(F164,TERCEROS[],3,FALSE),"") -> 
G165: =IFERROR(VLOOKUP(F165,TERCEROS[],3,FALSE),"") -> 
G166: =IFERROR(VLOOKUP(F166,TERCEROS[],3,FALSE),"") -> 
G167: =IFERROR(VLOOKUP(F167,TERCEROS[],3,FALSE),"") -> 
G168: =IFERROR(VLOOKUP(F168,TERCEROS[],3,FALSE),"") -> 
G169: =IFERROR(VLOOKUP(F169,TERCEROS[],3,FALSE),"") -> 
G170: =IFERROR(VLOOKUP(F170,TERCEROS[],3,FALSE),"") -> 
G171: =IFERROR(VLOOKUP(F171,TERCEROS[],3,FALSE),"") -> 
G172: =IFERROR(VLOOKUP(F172,TERCEROS[],3,FALSE),"") -> 
G173: =IFERROR(VLOOKUP(F173,TERCEROS[],3,FALSE),"") -> 
G174: =IFERROR(VLOOKUP(F174,TERCEROS[],3,FALSE),"") -> 
G175: =IFERROR(VLOOKUP(F175,TERCEROS[],3,FALSE),"") -> 
G176: =IFERROR(VLOOKUP(F176,TERCEROS[],3,FALSE),"") -> 
G177: =IFERROR(VLOOKUP(F177,TERCEROS[],3,FALSE),"") -> 
G178: =IFERROR(VLOOKUP(F178,TERCEROS[],3,FALSE),"") -> 
G179: =IFERROR(VLOOKUP(F179,TERCEROS[],3,FALSE),"") -> 
G180: =IFERROR(VLOOKUP(F180,TERCEROS[],3,FALSE),"") -> 
G181: =IFERROR(VLOOKUP(F181,TERCEROS[],3,FALSE),"") -> 
G182: =IFERROR(VLOOKUP(F182,TERCEROS[],3,FALSE),"") -> 
G183: =IFERROR(VLOOKUP(F183,TERCEROS[],3,FALSE),"") -> 
G184: =IFERROR(VLOOKUP(F184,TERCEROS[],3,FALSE),"") -> 
G185: =IFERROR(VLOOKUP(F185,TERCEROS[],3,FALSE),"") -> 
G186: =IFERROR(VLOOKUP(F186,TERCEROS[],3,FALSE),"") -> 
G187: =IFERROR(VLOOKUP(F187,TERCEROS[],3,FALSE),"") -> 
G188: =IFERROR(VLOOKUP(F188,TERCEROS[],3,FALSE),"") -> 
G189: =IFERROR(VLOOKUP(F189,TERCEROS[],3,FALSE),"") -> 
G190: =IFERROR(VLOOKUP(F190,TERCEROS[],3,FALSE),"") -> 
G191: =IFERROR(VLOOKUP(F191,TERCEROS[],3,FALSE),"") ->  | J191: =IFERROR(VLOOKUP(I191,PUC,2,FALSE),"") -> 
G192: =IFERROR(VLOOKUP(F192,TERCEROS[],3,FALSE),"") -> 
G193: =IFERROR(VLOOKUP(F193,TERCEROS[],3,FALSE),"") -> 
G194: =IFERROR(VLOOKUP(F194,TERCEROS[],3,FALSE),"") -> 
G195: =IFERROR(VLOOKUP(F195,TERCEROS[],3,FALSE),"") -> 
G196: =IFERROR(VLOOKUP(F196,TERCEROS[],3,FALSE),"") -> 
G197: =IFERROR(VLOOKUP(F197,TERCEROS[],3,FALSE),"") -> 
G198: =IFERROR(VLOOKUP(F198,TERCEROS[],3,FALSE),"") -> 
G199: =IFERROR(VLOOKUP(F199,TERCEROS[],3,FALSE),"") -> 
G200: =IFERROR(VLOOKUP(F200,TERCEROS[],3,FALSE),"") -> 
G201: =IFERROR(VLOOKUP(F201,TERCEROS[],3,FALSE),"") -> 
G202: =IFERROR(VLOOKUP(F202,TERCEROS[],3,FALSE),"") -> 
G203: =IFERROR(VLOOKUP(F203,TERCEROS[],3,FALSE),"") -> 
G204: =IFERROR(VLOOKUP(F204,TERCEROS[],3,FALSE),"") -> 
G205: =IFERROR(VLOOKUP(F205,TERCEROS[],3,FALSE),"") -> 
G206: =IFERROR(VLOOKUP(F206,TERCEROS[],3,FALSE),"") -> 
G207: =IFERROR(VLOOKUP(F207,TERCEROS[],3,FALSE),"") -> 
... 159 more rows

Sheet TERCEROS
A1: NIT | B1: DV | C1: RAZON SOCIAL | D1: TIPO
A2: 900XXXXX9 | B2: 9 | C2: ZAPATOCA S.A.S | D2: O-Otro
A3: 83215563 | C3: PEPITO PEREZ | D3: O-Otro
A4: 1204001553 | C4: WILMER CORDOBA | D4: O-Otro
A5: 101901555 | C5: LUZ MOLINA | D5: O-Otro
A6: 900000030 | B6: 5 | C6: BANCONTABLE | D6: O-Otro
A7: 900.355.XXX | B7: 3 | C7: INMOBILIARIA SERVICES S.A | D7: O-Otro
A8: 900555235 | B8: 5 | C8: ZAPATEROS BIG LTDA | D8: P-Proveedor
A9: 800211212 | B9: -5 | C9: LOS CAIMOS ZAPATOS S.A.S. | D9: C-Cliente

Sheet PUC
A1: PLAN UNICO DE CUENTAS PARA COMERCIANTES DECRETO 2649 DE 1993
A3: CODIGO | B3: NOMBRE O DENOMINACION | C3: CLASIFICACION
A4: 1 | B4: ACTIVO | C4: =IF(LEN(A4)=1,"CLASE",IF(LEN(A4)=2,"GRUPO",IF(LEN(A4)=4,"CUENTA",IF(LEN(A4)=6,"SUBCUENTA","")))) -> CLASE
A5: 11 | B5: DISPONIBLE | C5: =IF(LEN(A5)=1,"CLASE",IF(LEN(A5)=2,"GRUPO",IF(LEN(A5)=4,"CUENTA",IF(LEN(A5)=6,"SUBCUENTA","")))) -> GRUPO
A6: 1105 | B6: CAJA | C6: CUENTA
A7: 110505 | B7: CAJA GENERAL | C7: SUBCUENTA
A8: 11050501 | B8: CAJA GENERAL DE LA CIUDAD DE BOGOta
A9: 110510 | B9: CAJAS MENORES | C9: SUBCUENTA
A10: 110515 | B10: MONEDA EXTRANJERA | C10: SUBCUENTA
A11: 1110 | B11: BANCOS | C11: CUENTA
A12: 111005 | B12: MONEDA NACIONAL | C12: SUBCUENTA
A13: 11100505 | B13: BANCONTABLE
A14: 1110050501 | B14: CUENTA CORRIENTE NO. 008000356956
A15: 111010 | B15: MONEDA EXTRANJERA | C15: SUBCUENTA
A16: 1115 | B16: REMESAS EN TRANSITO | C16: CUENTA
A17: 111505 | B17: MONEDA NACIONAL | C17: SUBCUENTA
A18: 111510 | B18: MONEDA EXTRANJERA | C18: SUBCUENTA
A19: 1120 | B19: CUENTAS DE AHORRO | C19: CUENTA
A20: 112005 | B20: BANCOS | C20: SUBCUENTA
A21: 112010 | B21: CORPORACIONES DE AHORRO Y VIVIENDA | C21: SUBCUENTA
A22: 112015 | B22: ORGANISMOS COOPERATIVOS FINANCIEROS | C22: SUBCUENTA
A23: 1125 | B23: FONDOS | C23: CUENTA
A24: 112505 | B24: ROTATORIOS MONEDA NACIONAL | C24: SUBCUENTA
A25: 112510 | B25: ROTATORIOS MONEDA EXTRANJERA | C25: SUBCUENTA
A26: 112515 | B26: ESPECIALES MONEDA NACIONAL | C26: SUBCUENTA
A27: 112520 | B27: ESPECIALES MONEDA EXTRANJERA | C27: SUBCUENTA
A28: 112525 | B28: DE AMORTIZACION MONEDA NACIONAL | C28: SUBCUENTA
A29: 112530 | B29: DE AMORTIZACION MONEDA EXTRANJERA | C29: SUBCUENTA
A30: 12 | B30: INVERSIONES | C30: GRUPO
A31: 1205 | B31: ACCIONES | C31: CUENTA
A32: 120505 | B32: AGRICULTURA, GANADERIA, CAZA Y SILVICULTURA | C32: SUBCUENTA
A33: 120510 | B33: PESCA | C33: SUBCUENTA
A34: 120515 | B34: EXPLOTACION DE MINAS Y CANTERAS | C34: SUBCUENTA
A35: 120520 | B35: INDUSTRIA MANUFACTURERA | C35: SUBCUENTA
A36: 120525 | B36: SUMINISTRO DE ELECTRICIDAD, GAS Y AGUA | C36: SUBCUENTA
A37: 120530 | B37: CONSTRUCCION | C37: SUBCUENTA
A38: 120535 | B38: COMERCIO AL POR MAYOR Y AL POR MENOR | C38: SUBCUENTA
A39: 120540 | B39: HOTELES Y RESTAURANTES | C39: SUBCUENTA
A40: 120545 | B40: TRANSPORTE, ALMACENAMIENTO Y COMUNICACIONES | C40: SUBCUENTA
A41: 120550 | B41: ACTIVIDAD FINANCIERA | C41: SUBCUENTA
A42: 120555 | B42: ACTIVIDADES INMOBILIARIAS, EMPRESARIALES Y DE ALQUILER | C42: SUBCUENTA
A43: 120560 | B43: ENSEÑANZA | C43: SUBCUENTA
A44: 120565 | B44: SERVICIOS SOCIALES Y DE SALUD | C44: SUBCUENTA
A45: 120570 | B45: OTRAS ACTIVIDADES DE SERVICIOS COMUNITARIOS, SOCIALES Y PERSONALES | C45: SUBCUENTA
A46: 120599 | B46: AJUSTES POR INFLACION | C46: SUBCUENTA
A47: 1210 | B47: CUOTAS O PARTES DE INTERES SOCIAL | C47: CUENTA
A48: 121005 | B48: AGRICULTURA, GANADERIA, CAZA Y SILVICULTURA | C48: SUBCUENTA
A49: 121010 | B49: PESCA | C49: SUBCUENTA
A50: 121015 | B50: EXPLOTACION DE MINAS Y CANTERAS | C50: SUBCUENTA
A51: 121020 | B51: INDUSTRIA MANUFACTURERA | C51: SUBCUENTA
A52: 121025 | B52: SUMINISTRO DE ELECTRICIDAD, GAS Y AGUA | C52: SUBCUENTA
A53: 121030 | B53: CONSTRUCCION | C53: SUBCUENTA
A54: 121035 | B54: COMERCIO AL POR MAYOR Y AL POR MENOR | C54: SUBCUENTA
A55: 121040 | B55: HOTELES Y RESTAURANTES | C55: SUBCUENTA
A56: 121045 | B56: TRANSPORTE, ALMACENAMIENTO Y COMUNICACIONES | C56: SUBCUENTA
A57: 121050 | B57: ACTIVIDAD FINANCIERA | C57: SUBCUENTA
A58: 121055 | B58: ACTIVIDADES INMOBILIARIAS, EMPRESARIALES Y DE ALQUILER | C58: SUBCUENTA
A59: 121060 | B59: ENSEÑANZA | C59: SUBCUENTA
A60: 121065 | B60: SERVICIOS SOCIALES Y DE SALUD | C60: SUBCUENTA
A61: 121070 | B61: OTRAS ACTIVIDADES DE SERVICIOS COMUNITARIOS, SOCIALES Y PERSONALES | C61: SUBCUENTA
A62: 121099 | B62: AJUSTES POR INFLACION | C62: SUBCUENTA
A63: 1215 | B63: BONOS | C63: CUENTA
A64: 121505 | B64: BONOS PUBLICOS MONEDA NACIONAL | C64: SUBCUENTA
A65: 121510 | B65: BONOS PUBLICOS MONEDA EXTRANJERA | C65: SUBCUENTA
A66: 121515 | B66: BONOS ORDINARIOS | C66: SUBCUENTA
A67: 121520 | B67: BONOS CONVERTIBLES EN ACCIONES | C67: SUBCUENTA
A68: 121595 | B68: OTROS | C68: SUBCUENTA
A69: 1220 | B69: CEDULAS | C69: CUENTA
A70: 122005 | B70: CEDULAS DE CAPITALIZACION | C70: SUBCUENTA
A71: 122010 | B71: CEDULAS HIPOTECARIAS | C71: SUBCUENTA
A72: 122015 | B72: CEDULAS DE INVERSION | C72: =IF(LEN(A72)=1,"CLASE",IF(LEN(A72)=2,"GRUPO",IF(LEN(A72)=4,"CUENTA",IF(LEN(A72)=6,"SUBCUENTA","")))) -> SUBCUENTA
A73: 122095 | B73: OTRAS | C73: SUBCUENTA
A74: 1225 | B74: CERTIFICADOS | C74: CUENTA
A75: 122505 | B75: CERTIFICADOS DE DEPOSITO A TERMINO (C.D.T.) | C75: SUBCUENTA
A76: 122510 | B76: CERTIFICADOS DE DEPOSITO DE AHORRO | C76: SUBCUENTA
A77: 122515 | B77: CERTIFICADOS DE AHORRO DE VALOR CONSTANTE (C.A.V.C.) | C77: SUBCUENTA
A78: 122520 | B78: CERTIFICADOS DE CAMBIO | C78: SUBCUENTA
A79: 122525 | B79: CERTIFICADOS CAFETEROS VALORIZABLES | C79: SUBCUENTA
A80: 122530 | B80: CERTIFICADOS ELECTRICOS VALORIZABLES (C.E.V.) | C80: SUBCUENTA
A81: 122535 | B81: CERTIFICADOS DE REEMBOLSO TRIBUTARIO (C.E.R.T.) | C81: SUBCUENTA
A82: 122540 | B82: CERTIFICADOS DE DESARROLLO TURISTICO | C82: SUBCUENTA
A83: 122545 | B83: CERTIFICADOS DE INVERSION FORESTAL (C.I.F.) | C83: SUBCUENTA
A84: 122595 | B84: OTROS | C84: SUBCUENTA
A85: 1230 | B85: PAPELES COMERCIALES | C85: CUENTA
A86: 123005 | B86: EMPRESAS COMERCIALES | C86: SUBCUENTA
A87: 123010 | B87: EMPRESAS INDUSTRIALES | C87: SUBCUENTA
A88: 123015 | B88: EMPRESAS DE SERVICIOS | C88: SUBCUENTA
A89: 1235 | B89: TITULOS | C89: CUENTA
A90: 123505 | B90: TITULOS DE DESARROLLO AGROPECUARIO | C90: SUBCUENTA
A91: 123510 | B91: TITULOS CANJEABLES POR CERTIFICADOS DE CAMBIO | C91: SUBCUENTA
A92: 123515 | B92: TITULOS DE TESORERIA (T.E.S.) | C92: SUBCUENTA
A93: 123520 | B93: TITULOS DE PARTICIPACION | C93: SUBCUENTA
A94: 123525 | B94: TITULOS DE CREDITO DE FOMENTO | C94: SUBCUENTA
A95: 123530 | B95: TITULOS FINANCIEROS AGROINDUSTRIALES (T.F.A.) | C95: SUBCUENTA
A96: 123535 | B96: TITULOS DE AHORRO CAFETERO (T.A.C.) | C96: SUBCUENTA
A97: 123540 | B97: TITULOS DE AHORRO NACIONAL (T.A.N.) | C97: SUBCUENTA
A98: 123545 | B98: TITULOS ENERGETICOS DE RENTABILIDAD CRECIENTE (T.E.R.) | C98: SUBCUENTA
A99: 123550 | B99: TITULOS DE AHORRO EDUCATIVO (T.A.E.) | C99: SUBCUENTA
A100: 123555 | B100: TITULOS FINANCIEROS INDUSTRIALES Y COMERCIALES | C100: SUBCUENTA
A101: 123560 | B101: TESOROS | C101: SUBCUENTA
A102: 123565 | B102: TITULOS DE DEVOLUCION DE IMPUESTOS NACIONALES (TIDIS) | C102: SUBCUENTA
A103: 123570 | B103: TITULOS INMOBILIARIOS | C103: SUBCUENTA
A104: 123595 | B104: OTROS | C104: SUBCUENTA
A105: 1240 | B105: ACEPTACIONES BANCARIAS O FINANCIERAS | C105: CUENTA
A106: 124005 | B106: BANCOS COMERCIALES | C106: SUBCUENTA
A107: 124010 | B107: COMPAÑIAS DE FINANCIAMIENTO COMERCIAL | C107: SUBCUENTA
A108: 124015 | B108: CORPORACIONES FINANCIERAS | C108: SUBCUENTA
A109: 124095 | B109: OTRAS | C109: SUBCUENTA
A110: 1245 | B110: DERECHOS FIDUCIARIOS | C110: CUENTA
A111: 124505 | B111: FIDEICOMISOS DE INVERSION MONEDA NACIONAL | C111: SUBCUENTA
A112: 124510 | B112: FIDEICOMISOS DE INVERSION MONEDA EXTRANJERA | C112: SUBCUENTA
A113: 1250 | B113: DERECHOS DE RECOMPRA DE INVERSIONES NEGOCIADAS (REPOS) | C113: CUENTA
A114: 125005 | B114: ACCIONES | C114: SUBCUENTA
A115: 125010 | B115: CUOTAS O PARTES DE INTERES SOCIAL | C115: SUBCUENTA
A116: 125015 | B116: BONOS | C116: SUBCUENTA
A117: 125020 | B117: CEDULAS | C117: SUBCUENTA
A118: 125025 | B118: CERTIFICADOS | C118: SUBCUENTA
A119: 125030 | B119: PAPELES COMERCIALES | C119: SUBCUENTA
A120: 125035 | B120: TITULOS | C120: SUBCUENTA
A121: 125040 | B121: ACEPTACIONES BANCARIAS O FINANCIERAS 125095 OTROS | C121: SUBCUENTA
A122: 125099 | B122: AJUSTES POR INFLACION | C122: SUBCUENTA
A123: 1255 | B123: OBLIGATORIAS | C123: CUENTA
A124: 125505 | B124: BONOS DE FINANCIAMIENTO ESPECIAL | C124: SUBCUENTA
A125: 125510 | B125: BONOS DE FINANCIAMIENTO PRESUPUESTAL | C125: SUBCUENTA
A126: 125515 | B126: BONOS PARA DESARROLLO SOCIAL Y SEGURIDAD INTERNA (B.D.S.I.) | C126: SUBCUENTA
A127: 125595 | B127: OTRAS | C127: SUBCUENTA
A128: 1260 | B128: CUENTAS EN PARTICIPACION | C128: CUENTA
A129: 126001 a 126098
A130: 126099 | B130: AJUSTES POR INFLACION | C130: SUBCUENTA
A131: 1295 | B131: OTRAS INVERSIONES | C131: CUENTA
A132: 129505 | B132: APORTES EN COOPERATIVAS | C132: SUBCUENTA
A133: 129510 | B133: DERECHOS EN CLUBES SOCIALES | C133: SUBCUENTA
A134: 129515 | B134: ACCIONES O DERECHOS EN CLUBES DEPORTIVOS | C134: SUBCUENTA
A135: 129520 | B135: BONOS EN COLEGIOS | C135: SUBCUENTA
A136: 129595 | B136: DIVERSAS | C136: =IF(LEN(A136)=1,"CLASE",IF(LEN(A136)=2,"GRUPO",IF(LEN(A136)=4,"CUENTA",IF(LEN(A136)=6,"SUBCUENTA","")))) -> SUBCUENTA
A137: 129599 | B137: AJUSTES POR INFLACION | C137: SUBCUENTA
A138: 1299 | B138: PROVISIONES | C138: CUENTA
A139: 129905 | B139: ACCIONES | C139: SUBCUENTA
A140: 129910 | B140: CUOTAS O PARTES DE INTERES SOCIAL | C140: SUBCUENTA
A141: 129915 | B141: BONOS | C141: SUBCUENTA
A142: 129920 | B142: CEDULAS | C142: SUBCUENTA
A143: 129925 | B143: CERTIFICADOS | C143: SUBCUENTA
A144: 129930 | B144: PAPELES COMERCIALES | C144: SUBCUENTA
A145: 129935 | B145: TITULOS | C145: SUBCUENTA
A146: 129940 | B146: ACEPTACIONES BANCARIAS O FINANCIERAS | C146: SUBCUENTA
A147: 129945 | B147: DERECHOS FIDUCIARIOS | C147: SUBCUENTA
A148: 129950 | B148: DERECHOS DE RECOMPRA DE INVERSIONES NEGOCIADAS | C148: SUBCUENTA
A149: 129955 | B149: OBLIGATORIAS | C149: SUBCUENTA
A150: 129960 | B150: CUENTAS EN PARTICIPACION | C150: SUBCUENTA
A151: 129995 | B151: OTRAS INVERSIONES | C151: SUBCUENTA
A152: 13 | B152: DEUDORES | C152: GRUPO
A153: 1305 | B153: CLIENTES | C153: CUENTA
A154: 130505 | B154: NACIONALES | C154: SUBCUENTA
A155: 130510 | B155: DEL EXTERIOR | C155: SUBCUENTA
A156: 130515 | B156: DEUDORES DEL SISTEMA | C156: SUBCUENTA
A157: 1310 | B157: CUENTAS CORRIENTES COMERCIALES | C157: CUENTA
A158: 131005 | B158: CASA MATRIZ | C158: SUBCUENTA
A159: 131010 | B159: COMPAÑIAS VINCULADAS | C159: SUBCUENTA
A160: 131015 | B160: ACCIONISTAS O SOCIOS | C160: SUBCUENTA
A161: 131020 | B161: PARTICULARES | C161: SUBCUENTA
A162: 131095 | B162: OTRAS | C162: SUBCUENTA
A163: 1315 | B163: CUENTAS POR COBRAR A CASA MATRIZ | C163: CUENTA
A164: 131505 | B164: VENTAS | C164: SUBCUENTA
A165: 131510 | B165: PAGOS A NOMBRE DE CASA MATRIZ | C165: SUBCUENTA
A166: 131515 | B166: VALORES RECIBIDOS POR CASA MATRIZ | C166: SUBCUENTA
A167: 131520 | B167: PRESTAMOS | C167: SUBCUENTA
A168: 1320 | B168: CUENTAS POR COBRAR A VINCULADOS ECONOMICOS | C168: CUENTA
A169: 132005 | B169: FILIALES | C169: SUBCUENTA
A170: 132010 | B170: SUBSIDIARIAS | C170: SUBCUENTA
A171: 132015 | B171: SUCURSALES | C171: SUBCUENTA
A172: 1325 | B172: CUENTA S POR COBRAR A SOCIOS Y ACCIONISTAS | C172: CUENTA
A173: 132505 | B173: A SOCIOS | C173: SUBCUENTA
A174: 132510 | B174: A ACCIONISTAS | C174: SUBCUENTA
A175: 1328 | B175: APORTES POR COBRAR | C175: CUENTA
A176: 132801 a 132898
A177: 1330 | B177: ANTICIPOS Y AVANCES | C177: CUENTA
A178: 133005 | B178: A PROVEEDORES | C178: SUBCUENTA
A179: 133010 | B179: A CONTRATISTAS | C179: SUBCUENTA
A180: 133015 | B180: A TRABAJADORES | C180: SUBCUENTA
A181: 133020 | B181: A AGENTES | C181: SUBCUENTA
A182: 133025 | B182: A CONCESIONARIOS | C182: SUBCUENTA
A183: 133030 | B183: DE ADJUDICACIONES | C183: SUBCUENTA
A184: 133095 | B184: OTROS | C184: SUBCUENTA
A185: 1332 | B185: CUENTAS DE OPERACION CONJUNTA | C185: CUENTA
A186: 133201 a 133298
A187: 1335 | B187: DEPOSITOS | C187: CUENTA
A188: 133505 | B188: PARA IMPORTACIONES | C188: SUBCUENTA
A189: 133510 | B189: PARA SERVICIOS | C189: SUBCUENTA
A190: 133515 | B190: PARA CONTRATOS | C190: SUBCUENTA
A191: 133520 | B191: PARA RESPONSABILIDADES | C191: SUBCUENTA
A192: 133525 | B192: PARA JUICIOS EJECUTIVOS | C192: SUBCUENTA
A193: 133530 | B193: PARA ADQUISICION DE ACCIONES, CUOTAS O DERECHOS SOCIALES | C193: SUBCUENTA
A194: 133535 | B194: EN GARANTIA | C194: SUBCUENTA
A195: 133595 | B195: OTROS | C195: SUBCUENTA
A196: 1340 | B196: PROMESAS DE COMPRA VENTA | C196: CUENTA
A197: 134005 | B197: DE BIENES RAICES | C197: SUBCUENTA
A198: 134010 | B198: DE MAQUINARIA Y EQUIPO | C198: SUBCUENTA
A199: 134015 | B199: DE FLOTA Y EQUIPO DE TRANSPORTE | C199: SUBCUENTA
A200: 134020 | B200: DE FLOTA Y EQUIPO AEREO | C200: =IF(LEN(A200)=1,"CLASE",IF(LEN(A200)=2,"GRUPO",IF(LEN(A200)=4,"CUENTA",IF(LEN(A200)=6,"SUBCUENTA","")))) -> SUBCUENTA
A201: 134025 | B201: DE FLOTA Y EQUIPO FERREO | C201: SUBCUENTA
... 2416 more rows

Sheet INVENTARIO
A1: Producto | F1: Cantidad Maxima | I1: Cantidad Mínima | K1: Método
A3: Zapatos Referencia 002zp | F3: 8000 | I3: 100 | K3: PEPS
A6: # | B6: FECHA | C6: DETALLE | E6: ENTRADAS | H6: SALIDAS | K6: SALDOS
C7: CONCEPTO | D7: FRA NO. | E7: CANTIDAD | F7: VR. UNITARIO | G7: VR. TOTAL | H7: CANTIDAD | I7: VR. UNITARIO | J7: VR. TOTAL | K7: CANTIDAD | L7: VR. UNITARIO | M7: TOTAL
A8: 1 | B8: 2013-01-10 | C8: Compras | D8: ZAP002540 | E8: 200 | F8: 12000 | G8: =+E8*F8 -> 2400000 | K8: 200 | L8: 12000 | M8: =+K8*L8 -> 2400000
A9: 2 | B9: 2013-01-15 | C9: Venta | D9: ZP0001 | H9: 50 | I9: =+F8 -> 12000 | J9: =+H9*I9 -> 600000 | K9: =+K8-50 -> 150 | L9: =+L8 -> 12000 | M9: =+K9*L9 -> 1800000
A10: 3
A11: 4
A12: 5
A13: 6 | E13: =IF(OR(C13="inventario inicial",C13="compras",C13="devolución en compra"),"Aquí","") ->  | F13: =IF(AND(E13>0,OR(C13="inventario inicial",C13="compras")),"Vr. Factura",IF(AND(E13>0,C13="devolución en compra"),"Valor Factura","")) ->  | G13: =IF(ISTEXT(E13),"",IF(AND(E13>0,OR(EXACT(C13,"inventario inicial"),EXACT(C13,"compras"))),ROUND(E13*F13,0),IF(AND(E13>0,EXACT(C13,"devolución en compra")),ROUND(E13*(-F13),0),""))) ->  | H13: =IF(OR(C13="ventas",C13="devolución en venta"),"Aquí","") ->  | I13: =IF(AND(H13>0,C13="devolución en venta"),"Valor Factura",IF(AND(H13>0,C13="ventas"),L12,"")) ->  | J13: =IF(ISTEXT(H13),"",IF(AND(H13>0,OR(EXACT(C13,"ventas"))),ROUND(H13*I13,0),IF(AND(H13>0,EXACT(C13,"devolución en venta")),ROUND(H13*(-I13),0),""))) ->  | K13: =IF(OR(C13="inventario inicial",C13="compras"),K12+E13,IF(C13="devolución en compra",K12-E13,IF(C13="ventas",K12-H13,IF(C13="devolución en venta",K12+H13,"")))) ->  | L13: =IF(AND(ISNUMBER(K13),K13>0),M13/K13,"") ->  | M13: =IF(AND(E13>0,OR(EXACT(C13,"inventario inicial"),EXACT(C13,"compras"))),M12+G13,IF(AND(E13>0,OR(EXACT(C13,"devolución en venta"))),M12-J13,IF(AND(H13>0,OR(EXACT(C13,"ventas"))),M12-J13,IF(AND(H13>0,EXACT(C13,"devolución en compra")),M12+G13,"")))) -> 
B14: Costos | E14: =IF(OR(C14="inventario inicial",C14="compras",C14="devolución en compra"),"Aquí","") ->  | F14: =IF(AND(E14>0,OR(C14="inventario inicial",C14="compras")),"Vr. Factura",IF(AND(E14>0,C14="devolución en compra"),L13,"")) ->  | G14: =SUM(G8:G13) -> 2400000 | I14: =IF(AND(H14>0,OR(C14="ventas",C14="devolución en venta")),L13,"") ->  | J14: =SUM(J8:J13) -> 600000 | K14: =IF(OR(C14="inventario inicial",C14="compras"),K13+E14,IF(C14="devolución en compra",K13-E14,IF(C14="ventas",K13-H14,IF(C14="devolución en venta",K13+H14,"")))) ->  | M14: =IF(AND(E14>0,OR(EXACT(C14,"inventario inicial"),EXACT(C14,"compras"))),M13+G14,IF(AND(E14>0,OR(EXACT(C14,"devolución en venta"))),M13-J14,IF(AND(H14>0,OR(EXACT(C14,"ventas"))),M13-J14,IF(AND(H14>0,EXACT(C14,"devolución en compra")),M13+G14,"")))) -> 
A17: Producto | F17: Cantidad Maxima | I17: Cantidad Mínima | K17: Método
A19: Zapatos Referencia 003zp | F19: 8000 | I19: 100 | K19: PEPS
A22: # | B22: FECHA | C22: DETALLE | E22: ENTRADAS | H22: SALIDAS | K22: SALDOS
C23: CONCEPTO | D23: FRA NO. | E23: CANTIDAD | F23: VR. UNITARIO | G23: VR. TOTAL | H23: CANTIDAD | I23: VR. UNITARIO | J23: VR. TOTAL | K23: CANTIDAD | L23: VR. UNITARIO | M23: TOTAL
A24: 1 | B24: 2013-01-10 | C24: Compras | D24: ZAP002540 | E24: 100 | F24: 15200 | G24: =+E24*F24 -> 1520000 | K24: 100 | L24: 15200 | M24: =+K24*L24 -> 1520000
A25: 2
A26: 3
A27: 4
A28: 5
A29: 6 | E29: =IF(OR(C29="inventario inicial",C29="compras",C29="devolución en compra"),"Aquí","") ->  | F29: =IF(AND(E29>0,OR(C29="inventario inicial",C29="compras")),"Vr. Factura",IF(AND(E29>0,C29="devolución en compra"),"Valor Factura","")) ->  | G29: =IF(ISTEXT(E29),"",IF(AND(E29>0,OR(EXACT(C29,"inventario inicial"),EXACT(C29,"compras"))),ROUND(E29*F29,0),IF(AND(E29>0,EXACT(C29,"devolución en compra")),ROUND(E29*(-F29),0),""))) ->  | H29: =IF(OR(C29="ventas",C29="devolución en venta"),"Aquí","") ->  | I29: =IF(AND(H29>0,C29="devolución en venta"),"Valor Factura",IF(AND(H29>0,C29="ventas"),L28,"")) ->  | J29: =IF(ISTEXT(H29),"",IF(AND(H29>0,OR(EXACT(C29,"ventas"))),ROUND(H29*I29,0),IF(AND(H29>0,EXACT(C29,"devolución en venta")),ROUND(H29*(-I29),0),""))) ->  | K29: =IF(OR(C29="inventario inicial",C29="compras"),K28+E29,IF(C29="devolución en compra",K28-E29,IF(C29="ventas",K28-H29,IF(C29="devolución en venta",K28+H29,"")))) ->  | L29: =IF(AND(ISNUMBER(K29),K29>0),M29/K29,"") ->  | M29: =IF(AND(E29>0,OR(EXACT(C29,"inventario inicial"),EXACT(C29,"compras"))),M28+G29,IF(AND(E29>0,OR(EXACT(C29,"devolución en venta"))),M28-J29,IF(AND(H29>0,OR(EXACT(C29,"ventas"))),M28-J29,IF(AND(H29>0,EXACT(C29,"devolución en compra")),M28+G29,"")))) -> 
B30: Costos | E30: =IF(OR(C30="inventario inicial",C30="compras",C30="devolución en compra"),"Aquí","") ->  | F30: =IF(AND(E30>0,OR(C30="inventario inicial",C30="compras")),"Vr. Factura",IF(AND(E30>0,C30="devolución en compra"),L29,"")) ->  | G30: =SUM(G24:G29) -> 1520000 | I30: =IF(AND(H30>0,OR(C30="ventas",C30="devolución en venta")),L29,"") ->  | J30: =SUM(J24:J29) -> 0 | K30: =IF(OR(C30="inventario inicial",C30="compras"),K29+E30,IF(C30="devolución en compra",K29-E30,IF(C30="ventas",K29-H30,IF(C30="devolución en venta",K29+H30,"")))) ->  | M30: =IF(AND(E30>0,OR(EXACT(C30,"inventario inicial"),EXACT(C30,"compras"))),M29+G30,IF(AND(E30>0,OR(EXACT(C30,"devolución en venta"))),M29-J30,IF(AND(H30>0,OR(EXACT(C30,"ventas"))),M29-J30,IF(AND(H30>0,EXACT(C30,"devolución en compra")),M29+G30,"")))) -> 
A34: Producto | F34: Cantidad Maxima | I34: Cantidad Mínima | K34: Método
A36: Zapatos Referencia 004zp | F36: 8000 | I36: 100 | K36: PEPS
A39: # | B39: FECHA | C39: DETALLE | E39: ENTRADAS | H39: SALIDAS | K39: SALDOS
C40: CONCEPTO | D40: FRA NO. | E40: CANTIDAD | F40: VR. UNITARIO | G40: VR. TOTAL | H40: CANTIDAD | I40: VR. UNITARIO | J40: VR. TOTAL | K40: CANTIDAD | L40: VR. UNITARIO | M40: TOTAL
A41: 1 | B41: 2013-01-10 | C41: Compras | D41: ZAP002540 | E41: 120 | F41: 16850 | G41: =+E41*F41 -> 2022000 | K41: 120 | L41: 16850 | M41: =+K41*L41 -> 2022000
A42: 2 | B42: 2013-01-15 | C42: Venta | D42: ZP0001 | H42: 70 | I42: =+F41 -> 16850 | J42: =+H42*I42 -> 1179500 | K42: =+K41-H42 -> 50 | L42: =+L41 -> 16850 | M42: =+K42*L42 -> 842500
A43: 3 | F43: =IF(AND(E43>0,OR(C43="inventario inicial",C43="compras")),"Vr. Factura",IF(AND(E43>0,C43="devolución en compra"),"Valor Factura","")) ->  | G43: =IF(ISTEXT(E43),"",IF(AND(E43>0,OR(EXACT(C43,"inventario inicial"),EXACT(C43,"compras"))),ROUND(E43*F43,0),IF(AND(E43>0,EXACT(C43,"devolución en compra")),ROUND(E43*(-F43),0),""))) -> 
A44: 4 | E44: =IF(OR(C44="inventario inicial",C44="compras",C44="devolución en compra"),"Aquí","") ->  | F44: =IF(AND(E44>0,OR(C44="inventario inicial",C44="compras")),"Vr. Factura",IF(AND(E44>0,C44="devolución en compra"),"Valor Factura","")) ->  | G44: =IF(ISTEXT(E44),"",IF(AND(E44>0,OR(EXACT(C44,"inventario inicial"),EXACT(C44,"compras"))),ROUND(E44*F44,0),IF(AND(E44>0,EXACT(C44,"devolución en compra")),ROUND(E44*(-F44),0),""))) -> 
A45: 5 | E45: =IF(OR(C45="inventario inicial",C45="compras",C45="devolución en compra"),"Aquí","") ->  | F45: =IF(AND(E45>0,OR(C45="inventario inicial",C45="compras")),"Vr. Factura",IF(AND(E45>0,C45="devolución en compra"),"Valor Factura","")) ->  | G45: =IF(ISTEXT(E45),"",IF(AND(E45>0,OR(EXACT(C45,"inventario inicial"),EXACT(C45,"compras"))),ROUND(E45*F45,0),IF(AND(E45>0,EXACT(C45,"devolución en compra")),ROUND(E45*(-F45),0),""))) ->  | H45: =IF(OR(C45="ventas",C45="devolución en venta"),"Aquí","") ->  | I45: =IF(AND(H45>0,C45="devolución en venta"),"Valor Factura",IF(AND(H45>0,C45="ventas"),#REF!,"")) -> 
A46: 6 | E46: =IF(OR(C46="inventario inicial",C46="compras",C46="devolución en compra"),"Aquí","") ->  | F46: =IF(AND(E46>0,OR(C46="inventario inicial",C46="compras")),"Vr. Factura",IF(AND(E46>0,C46="devolución en compra"),"Valor Factura","")) ->  | G46: =IF(ISTEXT(E46),"",IF(AND(E46>0,OR(EXACT(C46,"inventario inicial"),EXACT(C46,"compras"))),ROUND(E46*F46,0),IF(AND(E46>0,EXACT(C46,"devolución en compra")),ROUND(E46*(-F46),0),""))) ->  | I46: =IF(AND(H46>0,C46="devolución en venta"),"Valor Factura",IF(AND(H46>0,C46="ventas"),L45,"")) -> 
B47: Costos | E47: =IF(OR(C47="inventario inicial",C47="compras",C47="devolución en compra"),"Aquí","") ->  | F47: =IF(AND(E47>0,OR(C47="inventario inicial",C47="compras")),"Vr. Factura",IF(AND(E47>0,C47="devolución en compra"),L46,"")) ->  | G47: =SUM(G41:G46) -> 2022000 | I47: =IF(AND(H47>0,OR(C47="ventas",C47="devolución en venta")),L46,"") ->  | J47: =SUM(J41:J46) -> 1179500 | K47: =IF(OR(C47="inventario inicial",C47="compras"),K46+E47,IF(C47="devolución en compra",K46-E47,IF(C47="ventas",K46-H47,IF(C47="devolución en venta",K46+H47,"")))) ->  | L47: =IF(AND(ISNUMBER(K47),K47>0),M47/K47,"") ->  | M47: =IF(AND(E47>0,OR(EXACT(C47,"inventario inicial"),EXACT(C47,"compras"))),M46+G47,IF(AND(E47>0,OR(EXACT(C47,"devolución en venta"))),M46-J47,IF(AND(H47>0,OR(EXACT(C47,"ventas"))),M46-J47,IF(AND(H47>0,EXACT(C47,"devolución en compra")),M46+G47,"")))) -> 

Sheet Tabla Retencion
B1: TABLA DERETENCIÓN EN LA FUENTE AÑO 2013
B2: Rubro | C2: Concepto | D2: Base Minima (cifra en UVT) | E2: A partir de (cifra en pesos) | F2: Tarifa
A3: VALOR UVT AÑO 2013 | B3: Ingresos Laborales (asalariados y trabajadores independientes) | C3: Ingresos originados en la prestación de servicios de manera personal o de la realización de una actividad económica por cuenta y riesgo del empleador o contratante, mediante una vinculación laboral o legal y reglamentaria o de cualquier otra naturaleza, independientemente de su denominación. | D3: 95 | E3: 2550000 | F3: Tabla Art 383, E.T
A4: 26841 | C4: Tarifa mínima de retención en la fuente para empleados (asalariados y trabajadores independientes) declarantes del impuesto sobre la renta. | D4: 128.96 | E4: 3461000 | F4: Tabla Art. 384, E.T. | H4: Mecanica de retención en la fuente
C5: Indemnizaciones salariales a empleados con sueldo superior a 10 SMMLV (Art. 401-3 ET) | D5: No Aplica | E5: 1 | F5: 0.2 | H5: Vendedor | M5: Régimen Simplificado | R5: Régimen Común | W5: Gran contruyente | AB5: Gran contruyente Autoretenedor
B6: Compras y otros ingresos tributarios | C6: Compras en general | D6: 27 | E6: 725000 | F6: 0.035
C7: Compras de bienes y productos agricolas o pecuarios sin procesamiento industrial | D7: 92 | E7: 2469000 | F7: 0.015 | H7: Comprador
C8: Compra de café pergamino o cereza | D8: 160 | E8: 4295000 | F8: 0.005 | H8: Régimen Simplificado | M8: No Existe Retención | R8: No Existe Retención | W8: No Existe Retención | AB8: No Existe Retención
C9: Compra de combustible o derivados del petroleo. | D9: No Aplica | E9: 1 | F9: 0.001
B10: Servicios | C10: Servicios en general (personas jurídicas y a las naturales declarantes de renta) | D10: 4 | E10: 107000 | F10: 0.04 | H10: Régimen Común | M10: Rete Fte Iva Teórico Rete ICA | R10: Rete Fte (renta) | W10: Rete Fte | AB10: No Existe Retención (AUTO RETENCION
C11: Servicios en general (personas naturales NO declarantes de renta) | D11: 4 | E11: 107000 | F11: 0.06
C12: Servicios prestados por empresas temporales. | D12: 4 | E12: 107000 | F12: 0.01 | H12: Gran contruyente | M12: Rete Fte Iva Teórico Rete ICA | R12: Rete Fte Rete IVA Rete ICA | W12: Rete Fte | AB12: No Existe Retención
C13: Servicios de vigilancia y aseo prestados por empresas de vigilancia y aseo. | D13: 4 | E13: 107000 | F13: 0.02
C14: Los servicios integrales de salud que involucran servicios calificados y no calificados, prestados a un usuario por instituciones prestadoras de salud IPS, que comprenden hospitalización, radiología, medicamentos, exámenes y análisis de laboratorios clínicos (Art. 392 Inc 5 ET) | D14: 4 | E14: 107000 | F14: 0.02 | H14: Gran contruyente Autoretenedor | M14: Rete Fte Iva Teórico Rete ICA | R14: Rete Fte (Renta) Rete IVA Rete ICA | W14: Rete Fte | AB14: No Existe Retención
C15: Servicios de hoteles, restaurantes, hospedaje. | D15: 4 | E15: 107000 | F15: 0.035
C16: Servicios de transporte nacional de carga (terrestre, marítimo o aéreo) | D16: 4 | E16: 107000 | F16: 0.01
C17: Servicios de transporte nacional de pasajeros. (terrestre) | D17: 27 | E17: 725000 | F17: 0.035
C18: Servicios de transporte nacional de pasajeros. (aéreo, marítimo) | D18: 4 | E18: 107000 | F18: 0.01
C19: Servicio de transporte internacional de carga (terrestre) | D19: 4 | E19: 107000 | F19: 0.01
C20: Servicios de transporte internacional de pasajeros (terrestre) | D20: 27 | E20: 725000 | F20: 0.035
B21: Arrendamientos | C21: Arrendamiento de bienes muebles | D21: No Aplica | E21: 1 | F21: 0.04
C22: Arrendamiento de bienes raíces | D22: 27 | E22: 725000 | F22: 0.035
B23: Contratos | C23: Contratos de consultoría y administración delegada (cuando el beneficiario del pago sea una persona jurídica o asimilada) | D23: No Aplica | E23: 1 | F23: 0.11
C24: Contratos de consultoría y administración delegada (cuando el beneficiario del pago sea una persona natural No Declarante) | D24: No Aplica | E24: 1 | F24: 0.1
C25: Contratos de consultoría en ingeniería de proyectos de infraestructura y edificaciones (Declarantes de Renta) | D25: No Aplica | E25: 1 | F25: 0.06
C26: Contratos de consultoría en ingeniería de proyectos de infraestructura y edificaciones, a favor de PN No obligadas a presentar declaración de Renta.(Dcto. 1141 de 2010) | D26: No Aplica | E26: 1 | F26: 0.1
C27: Contratos de construcción, urbanización o confección de obra material de bien inmueble. | D27: 27 | E27: 725000 | F27: 0.01
B28: Otros conceptos tributarios | C28: Honorarios y Comisiones (cuando el beneficiario del pago sea persona jurídica o P.N declarante) | D28: No Aplica | E28: 1 | F28: 0.11
C29: Honorarios y Comisiones (cuando el beneficiario del pago sea una persona natural no declarante) | D29: No Aplica | E29: 1 | F29: 0.1
C30: Servicios de licenciamiento o derecho de uso de software (Residentes o domiciliados obligados a declarar) | D30: No Aplica | E30: 1 | F30: 0.035
C31: Rendimientos Financieros (Intereses) | D31: No Aplica | E31: 1 | F31: 0.07
C32: Loterías, Rifas, Apuestas y Similares | D32: 48 | E32: 1288000 | F32: 0.2
C33: Enajenación de Activos Fijos Persona Natural (Art 398, ET) | D33: No Aplica | E33: 1 | F33: 0.01
C34: Pagos a establecimientos comerciales realizados con tarjeta débito o crédito. | D34: No Aplica | E34: 1 | F34: 1.5%
C35: Emolumentos eclesiásticos efectuados a personas naturales que sean declarantes de renta. | D35: 27 | E35: 725000 | F35: 0.04
C36: Emolumentos eclesiásticos efectuados a personas naturales que NO sean declarantes de renta. | D36: 27 | E36: 725000 | F36: 0.035
C37: Dividendos gravados | D37: No Aplica | E37: 1 | F37: 25% o 20%
B38: Retención en la fuente de IVA | C38: Retención en la fuente del IVA por compras de bienes gravados. | D38: 27 | E38: 725000 | F38: 15% del IVA
C39: Retención en la fuente del IVA por Servicios gravados. | D39: 4 | E39: 107000 | F39: 15% del IVA
C40: Retención en la fuente del IVA aplicable a operaciones con tarjetas débito o crédito. | D40: No Aplica | E40: 1 | F40: 15% del IVA
B41: Pagos al exterior | C41: Dividendos y participaciones gravadas en Colombia. | D41: No Aplica | E41: 1 | F41: 0.33
C42: Intereses, comisiones, honorarios, regalías, arrendamientos, compensaciones por servicios personales, o explotación de toda especie de propiedad industrial. | D42: No Aplica | E42: 1 | F42: 0.33
C43: Consultorías, servicios técnicos y de asistencia técnica, bien sea que se presten en Colombia o desde el exterior. | D43: No Aplica | E43: 1 | F43: 0.1
C44: Los pagos o abonos en cuenta por concepto de rendimientos financieros, realizados a personas no residentes o no domiciliadas en el país, originados en créditos obtenidos en el exterior por término igual o superior a un (1) año o por concepto de intereses o costos financieros del canon de arrendamiento originados en contratos de leasing que se celebre directamente o a través de compañías de leasing con empresas extranjeras sin domicilio en Colombia. (Art 47 Ley 1430 de 2010) | D44: No Aplica | E44: 1

Sheet Egresos
L7: 02 de Enero de 2013
L9: Pagado a Inmobiliaria Service S.A.
L13: Cheque para consignar en cuenta del primer beneficiario
T20: NIT. 900.XXX,XX9-9
AB21: COMPROBANTE
AB22: DE EGRESO No. | AI22: 0001
H25: CÓDIGO | M25: CONCEPTO | AB25: DÉBITO | AH25: CRÉDITO
H26: 233540 | M26: Pago de Factura No. IMB2563 | AB26: 4364224.138
H27: 1110050501 | M27: CUENTA CORRIENTE NO. 008000356956 | AH27: =+AB26 -> 4364224.138
H33: CHEQUE No. | K33: CH0001 | W33: EFECTIVO | AC33: FIRMA Y SELLO DEL BENEFICIARIO
H34: BANCO | K34: BANCONTABLE
H35: NIT DEL BENEFICIARIO | M35: 900.355.XXX-3
H36: BENEFICIARIO DEL PAGO | M36: INMOBILIARIA SERVICE S.A.
I37: PREPARADO | N37: REVISADO | S37: APROBADO | X37: CONTABILIZADO
AC39: CC O NIT.
L47: 10 de Enero de 2013
L49: Pagado ZAPATEROS BIG LTDA.
L53: Cheque para consignar en cuenta del primer beneficiario
T60: NIT. 900.XXX,XX9-9
AB61: COMPROBANTE
AB62: DE EGRESO No. | AI62: 0002
H65: CÓDIGO | M65: CONCEPTO | AB65: DÉBITO | AH65: CRÉDITO
H66: 220501 | M66: Pago de Factura No. ZAP002540 | AB66: 3342375
H67: 1110050501 | M67: CUENTA CORRIENTE NO. 008000356956 | AH67: =+AB66 -> 3342375
H73: CHEQUE No. | K73: CH0002 | W73: EFECTIVO | AC73: FIRMA Y SELLO DEL BENEFICIARIO
H74: BANCO | K74: BANCONTABLE
H75: NIT DEL BENEFICIARIO | M75: 900555235
H76: BENEFICIARIO DEL PAGO | M76: ZAPATEROS BIG LTDA.
I77: PREPARADO | N77: REVISADO | S77: APROBADO | X77: CONTABILIZADO
AC79: CC O NIT.

Sheet C.COBRAR

Sheet Pendiente
A1: CONTROL DIFERIDOS
A2: TIPO COMP | B2: # | C2: FECHA COMP | D2: NO SOPORTE | E2: FECHA SOPORTE | F2: NIT | G2: TERCERO | H2: CONCEPTO | I2: CUENTA NO | J2: NOMBRE CTA | K2: DEBITO | L2: CREDITO | M2: SALDO
A3: FC-Factura Compra | B3: 0001 | C3: 2013-01-02 | D3: IMB2563 | E3: 2013-01-02 | F3: 900.355.XXX | G3: =IFERROR(VLOOKUP(F3,TERCEROS[],3,FALSE),"") -> INMOBILIARIA SERVICES S.A | H3: Pago Tres meses de arriendo de bodega | I3: 170525 | J3: =IFERROR(VLOOKUP(I3,PUC,2,FALSE),"") -> ARRENDAMIENTOS | K3: 3879310.345 | M3: =+K3 -> 3879310.345
H4: Amortizacion 1
H5: Amortizacion 2
H6: Amortizacion 3

Sheet C.PAGAR

Sheet PENDIENTES
A1: TIPO COMP | B1: # | C1: FECHA COMP | D1: NO SOPORTE | E1: FECHA SOPORTE | F1: NIT | G1: TERCERO | H1: CONCEPTO | I1: CUENTA NO | J1: NOMBRE CTA | K1: DEBITO | L1: CREDITO
A2: FC-Factura Compra | B2: 0001 | C2: 2013-01-02 | D2: IMB2563 | E2: 2013-01-02 | F2: 900.355.XXX | G2: =IFERROR(VLOOKUP(F2,TERCEROS[],3,FALSE),"") -> INMOBILIARIA SERVICES S.A | H2: Pago arriendo meses de enero-febrero-Marzo/13 | I2: 170525 | J2: =IFERROR(VLOOKUP(I2,PUC,2,FALSE),"") -> ARRENDAMIENTOS | K2: 4500000

Sheet ACTIVOS FIJOS
D1: Nit. 900.XXX,XX9-9
D2: Resolucion DIAN 90000000-222222 de 01 de enero de 2013
D3: NUMERACION FACTURACION 01-9999
D4: IVA -Regimen Común
A5: TIPO COMP | B5: FECHA COMP | C5: NO SOPORTE | D5: FECHA SOPORTE | E5: NIT | F5: TERCERO | G5: CONCEPTO | H5: CUENTA NO | I5: NOMBRE CTA | J5: DEBITO | K5: CREDITO
A6: CD-Comprobante Diario | B6: 2013-01-02 | E6: 83215563 | F6: =IFERROR(VLOOKUP(E6,TERCEROS[],3,FALSE),"") -> PEPITO PEREZ | G6: Apte Vehiculo para la empresa | H6: 154005 | I6: =IFERROR(VLOOKUP(H6,PUC,2,FALSE),"") -> AUTOS, CAMIONETAS Y CAMPEROS | K6: 16000000
A7: CD-Comprobante Diario | B7: 2013-01-02 | E7: 83215563 | F7: =IFERROR(VLOOKUP(E7,TERCEROS[],3,FALSE),"") -> PEPITO PEREZ | G7: Apte Vehiculo para la empresa | H7: 31051501 | I7: PEPITO PEREZ | J7: 16000000
A8: CD-Comprobante Diario | B8: 2013-01-02 | E8: 83215563 | F8: =IFERROR(VLOOKUP(E8,TERCEROS[],3,FALSE),"") -> PEPITO PEREZ | G8: Apte Terreno para la empresaq | H8: 150405 | I8: URBANOS | K8: 22000000
A9: CD-Comprobante Diario | B9: 2013-01-02 | E9: 83215563 | F9: =IFERROR(VLOOKUP(E9,TERCEROS[],3,FALSE),"") -> PEPITO PEREZ | G9: Apte Terreno para la empresaq | H9: 31051501 | I9: PEPITO PEREZ | J9: 22000000
A10: CD-Comprobante Diario | B10: 2013-01-02 | E10: 1204001553 | F10: =IFERROR(VLOOKUP(E10,TERCEROS[],3,FALSE),"") -> WILMER CORDOBA | G10: Aporte de Edificio | H10: 31051502 | I10: WILMER CORDOBA | K10: 7000000
A11: CD-Comprobante Diario | B11: 2013-01-02 | E11: 1204001553 | F11: =IFERROR(VLOOKUP(E11,TERCEROS[],3,FALSE),"") -> WILMER CORDOBA | G11: Aporte de Edificio | H11: 150405 | I11: URBANOS | J11: 7000000
A12: CD-Comprobante Diario | B12: 2013-01-02 | E12: 1204001553 | F12: =IFERROR(VLOOKUP(E12,TERCEROS[],3,FALSE),"") -> WILMER CORDOBA | G12: Apta Construccion para oficina cll 94 con 5 | H12: 31051502 | I12: WILMER CORDOBA | K12: 11000000
A13: CD-Comprobante Diario | B13: 2013-01-02 | E13: 1204001553 | F13: =IFERROR(VLOOKUP(E13,TERCEROS[],3,FALSE),"") -> WILMER CORDOBA | G13: Apta Construccion para oficina cll 94 con 5 | H13: 151610 | I13: OFICINAS | J13: 11000000
A14: CD-Comprobante Diario | B14: 2013-01-02 | E14: 101901555 | F14: =IFERROR(VLOOKUP(E14,TERCEROS[],3,FALSE),"") -> LUZ MOLINA | G14: Apta casa en la calle 100 | H14: 31051503 | I14: LUZ MOLINA | K14: 30000000
A15: CD-Comprobante Diario | B15: 2013-01-02 | E15: 101901555 | F15: =IFERROR(VLOOKUP(E15,TERCEROS[],3,FALSE),"") -> LUZ MOLINA | G15: Apta casa en la calle 100 | H15: 151610 | I15: OFICINAS | J15: 30000000
A16: CD-Comprobante Diario | B16: 2013-01-02 | E16: 101901555 | F16: =IFERROR(VLOOKUP(E16,TERCEROS[],3,FALSE),"") -> LUZ MOLINA | G16: Apte Computador Dell SN 300sn25 | H16: 31051503 | I16: LUZ MOLINA | K16: 2500000
A17: CD-Comprobante Diario | B17: 2013-01-02 | E17: 101901555 | F17: =IFERROR(VLOOKUP(E17,TERCEROS[],3,FALSE),"") -> LUZ MOLINA | G17: Apte Computador Dell SN 300sn25 | H17: 15280501 | I17: COMPUTADOR MARCA DELL | J17: 2500000

Sheet INVENTARIOS
C5: Producto | H5: Cantidad Maxima | K5: Cantidad Mínima | M5: Método
C7: Zapatos Referencia 002zp | H7: 10000 | K7: 20 | M7: PEPS
C10: # | D10: FECHA | E10: DETALLE | G10: ENTRADAS | J10: SALIDAS | M10: SALDOS
E11: CONCEPTO | F11: FRA NO. | G11: CANTIDAD | H11: VR. UNITARIO | I11: VR. TOTAL | J11: CANTIDAD | K11: VR. UNITARIO | L11: VR. TOTAL | M11: CANTIDAD | N11: VR. UNITARIO | O11: TOTAL
C12: 1 | D12: 2013-01-01 | E12: Compra | F12: ZAP002540 | G12: 200 | H12: 12000 | I12: =+G12*H12 -> 2400000 | J12: =IF(OR(E12="ventas",E12="devolución en compras"),"Aquí","") ->  | K12: =IF(EXACT(J12,"Aquí"),"Vr. Factura","") ->  | L12: =IF(ISNUMBER(J12),ROUND(J12*K12,0),"") ->  | M12: =G12 -> 200 | N12: =H12 -> 12000 | O12: =IF(AND(ISNUMBER(G12),ISNUMBER(H12)),M12*N12,"") -> 2400000
C13: 2 | G13: =IF(OR(E13="inventario inicial",E13="compras",E13="devolución en compra"),"Aquí","") ->  | H13: =IF(AND(G13>0,OR(E13="inventario inicial",E13="compras")),"Vr. Factura",IF(AND(G13>0,E13="devolución en compra"),"Valor Factura","")) ->  | I13: =IF(ISTEXT(G13),"",IF(AND(G13>0,OR(EXACT(E13,"inventario inicial"),EXACT(E13,"compras"))),ROUND(G13*H13,0),IF(AND(G13>0,EXACT(E13,"devolución en compra")),ROUND(G13*(-H13),0),""))) ->  | J13: =IF(OR(E13="ventas",E13="devolución en venta"),"Aquí","") ->  | K13: =IF(AND(J13>0,E13="devolución en venta"),"Valor Factura",IF(AND(J13>0,E13="ventas"),N12,"")) ->  | L13: =IF(ISTEXT(J13),"",IF(AND(J13>0,OR(EXACT(E13,"ventas"))),ROUND(J13*K13,0),IF(AND(J13>0,EXACT(E13,"devolución en venta")),ROUND(J13*(-K13),0),""))) ->  | M13: =IF(OR(E13="inventario inicial",E13="compras"),M12+G13,IF(E13="devolución en compra",M12-G13,IF(E13="ventas",M12-J13,IF(E13="devolución en venta",M12+J13,"")))) ->  | N13: =IF(AND(ISNUMBER(M13),M13>0),O13/M13,"") ->  | O13: =IF(AND(G13>0,OR(EXACT(E13,"inventario inicial"),EXACT(E13,"compras"))),O12+I13,IF(AND(G13>0,OR(EXACT(E13,"devolución en venta"))),O12-L13,IF(AND(J13>0,OR(EXACT(E13,"ventas"))),O12-L13,IF(AND(J13>0,EXACT(E13,"devolución en compra")),O12+I13,"")))) -> 
C14: 3 | H14: =IF(AND(G14>0,OR(E14="inventario inicial",E14="compras")),"Vr. Factura",IF(AND(G14>0,E14="devolución en compra"),"Valor Factura","")) ->  | I14: =IF(ISTEXT(G14),"",IF(AND(G14>0,OR(EXACT(E14,"inventario inicial"),EXACT(E14,"compras"))),ROUND(G14*H14,0),IF(AND(G14>0,EXACT(E14,"devolución en compra")),ROUND(G14*(-H14),0),""))) ->  | K14: =IF(AND(J14>0,E14="devolución en venta"),"Valor Factura",IF(AND(J14>0,E14="ventas"),#REF!,"")) ->  | L14: =IF(ISTEXT(J14),"",IF(AND(J14>0,OR(EXACT(E14,"ventas"))),ROUND(J14*K14,0),IF(AND(J14>0,EXACT(E14,"devolución en venta")),ROUND(J14*(-K14),0),""))) ->  | M14: =IF(OR(E14="inventario inicial",E14="compras"),#REF!+G14,IF(E14="devolución en compra",#REF!-G14,IF(E14="ventas",#REF!-J14,IF(E14="devolución en venta",#REF!+J14,"")))) ->  | O14: =IF(AND(G14>0,OR(EXACT(E14,"inventario inicial"),EXACT(E14,"compras"))),#REF!+I14,IF(AND(G14>0,OR(EXACT(E14,"devolución en venta"))),#REF!-L14,IF(AND(J14>0,OR(EXACT(E14,"ventas"))),#REF!-L14,IF(AND(J14>0,EXACT(E14,"devolución en compra")),#REF!+I14,"")))) -> 
C15: 4 | H15: =IF(AND(G15>0,OR(E15="inventario inicial",E15="compras")),"Vr. Factura",IF(AND(G15>0,E15="devolución en compra"),"Valor Factura","")) ->  | I15: =IF(ISTEXT(G15),"",IF(AND(G15>0,OR(EXACT(E15,"inventario inicial"),EXACT(E15,"compras"))),ROUND(G15*H15,0),IF(AND(G15>0,EXACT(E15,"devolución en compra")),ROUND(G15*(-H15),0),""))) ->  | K15: =IF(AND(J15>0,E15="devolución en venta"),"Valor Factura",IF(AND(J15>0,E15="ventas"),N14,"")) ->  | L15: =IF(ISTEXT(J15),"",IF(AND(J15>0,OR(EXACT(E15,"ventas"))),ROUND(J15*K15,0),IF(AND(J15>0,EXACT(E15,"devolución en venta")),ROUND(J15*(-K15),0),""))) ->  | M15: =IF(OR(E15="inventario inicial",E15="compras"),M14+G15,IF(E15="devolución en compra",M14-G15,IF(E15="ventas",M14-J15,IF(E15="devolución en venta",M14+J15,"")))) ->  | O15: =IF(AND(G15>0,OR(EXACT(E15,"inventario inicial"),EXACT(E15,"compras"))),O14+I15,IF(AND(G15>0,OR(EXACT(E15,"devolución en venta"))),O14-L15,IF(AND(J15>0,OR(EXACT(E15,"ventas"))),O14-L15,IF(AND(J15>0,EXACT(E15,"devolución en compra")),O14+I15,"")))) -> 
C16: 5 | H16: =IF(AND(G16>0,OR(E16="inventario inicial",E16="compras")),"Vr. Factura",IF(AND(G16>0,E16="devolución en compra"),"Valor Factura","")) ->  | I16: =IF(ISTEXT(G16),"",IF(AND(G16>0,OR(EXACT(E16,"inventario inicial"),EXACT(E16,"compras"))),ROUND(G16*H16,0),IF(AND(G16>0,EXACT(E16,"devolución en compra")),ROUND(G16*(-H16),0),""))) ->  | K16: =IF(AND(J16>0,E16="devolución en venta"),"Valor Factura",IF(AND(J16>0,E16="ventas"),#REF!,"")) ->  | L16: =IF(ISTEXT(J16),"",IF(AND(J16>0,OR(EXACT(E16,"ventas"))),ROUND(J16*K16,0),IF(AND(J16>0,EXACT(E16,"devolución en venta")),ROUND(J16*(-K16),0),""))) ->  | M16: =IF(OR(E16="inventario inicial",E16="compras"),#REF!+G16,IF(E16="devolución en compra",#REF!-G16,IF(E16="ventas",#REF!-J16,IF(E16="devolución en venta",#REF!+J16,"")))) ->  | O16: =IF(AND(G16>0,OR(EXACT(E16,"inventario inicial"),EXACT(E16,"compras"))),#REF!+I16,IF(AND(G16>0,OR(EXACT(E16,"devolución en venta"))),#REF!-L16,IF(AND(J16>0,OR(EXACT(E16,"ventas"))),#REF!-L16,IF(AND(J16>0,EXACT(E16,"devolución en compra")),#REF!+I16,"")))) -> 
C17: 6 | H17: =IF(AND(G17>0,OR(E17="inventario inicial",E17="compras")),"Vr. Factura",IF(AND(G17>0,E17="devolución en compra"),"Valor Factura","")) ->  | I17: =IF(ISTEXT(G17),"",IF(AND(G17>0,OR(EXACT(E17,"inventario inicial"),EXACT(E17,"compras"))),ROUND(G17*H17,0),IF(AND(G17>0,EXACT(E17,"devolución en compra")),ROUND(G17*(-H17),0),""))) ->  | K17: =IF(AND(J17>0,E17="devolución en venta"),"Valor Factura",IF(AND(J17>0,E17="ventas"),N16,"")) ->  | L17: =IF(ISTEXT(J17),"",IF(AND(J17>0,OR(EXACT(E17,"ventas"))),ROUND(J17*K17,0),IF(AND(J17>0,EXACT(E17,"devolución en venta")),ROUND(J17*(-K17),0),""))) ->  | M17: =IF(OR(E17="inventario inicial",E17="compras"),M16+G17,IF(E17="devolución en compra",M16-G17,IF(E17="ventas",M16-J17,IF(E17="devolución en venta",M16+J17,"")))) ->  | O17: =IF(AND(G17>0,OR(EXACT(E17,"inventario inicial"),EXACT(E17,"compras"))),O16+I17,IF(AND(G17>0,OR(EXACT(E17,"devolución en venta"))),O16-L17,IF(AND(J17>0,OR(EXACT(E17,"ventas"))),O16-L17,IF(AND(J17>0,EXACT(E17,"devolución en compra")),O16+I17,"")))) -> 
D18: Costos | H18: =IF(AND(G18>0,OR(E18="inventario inicial",E18="compras")),"Vr. Factura",IF(AND(G18>0,E18="devolución en compra"),N17,"")) ->  | I18: =SUM(I12:I17) -> 2400000 | K18: =IF(AND(J18>0,OR(E18="ventas",E18="devolución en venta")),N17,"") ->  | L18: =SUM(L12:L17) -> 0 | M18: =IF(OR(E18="inventario inicial",E18="compras"),M17+G18,IF(E18="devolución en compra",M17-G18,IF(E18="ventas",M17-J18,IF(E18="devolución en venta",M17+J18,"")))) ->  | O18: =IF(AND(G18>0,OR(EXACT(E18,"inventario inicial"),EXACT(E18,"compras"))),O17+I18,IF(AND(G18>0,OR(EXACT(E18,"devolución en venta"))),O17-L18,IF(AND(J18>0,OR(EXACT(E18,"ventas"))),O17-L18,IF(AND(J18>0,EXACT(E18,"devolución en compra")),O17+I18,"")))) -> 
